fUSD/lending_fUSD_20240623
["ID","MTS","AMOUNT","RATE_DAILY","PERIOD"]
[330202616,1719142232236,-327.775,0.0001339,2]
[330202617,1719142232249,-466.99611016,0.0001339,2]
[330202618,1719142232258,-3753.1223,0.0001339,2]
[330202619,1719142232268,-180.27,0.0001341,2]
[330202620,1719142232277,-1298.28,0.00013441,2]
[330202621,1719142232286,-418.39,0.00013441,2]
[330202622,1719142232296,-9616.6666,0.0001348,2]
[330202623,1719142232305,-48653.27498986,0.0001349,2]
[330202624,1719142232317,-490.54460997,0.0001349,2]
[330202625,1719142232329,-2199.03870347,0.0001349,2]
[330202626,1719142232371,-322.91174239,0.0001349,2]
[330202627,1719142232383,-2005.57355483,0.0001349,2]
[330202628,1719142232395,-640.72236204,0.0001349,2]
[330202629,1719142232407,-451.92492773,0.0001349,2]
[330202630,1719142232419,-639.33793518,0.0001349,2]
[330202631,1719142232431,-938.21279485,0.0001349,2]
[330202633,1719142239771,-1235.9041344,0.0001349,2]
[330202636,1719142240550,-314.93189041,0.0001349,2]
[330202665,1719142391051,-625.29,0.00011263,2]
[330202666,1719142391338,-221.8199,0.00013231,2]
[330202667,1719142394270,-28.1801,0.00013231,2]
[330202668,1719142394293,-1161.25,0.00013382,2]
[330202669,1719142394315,-155.0,0.0001339,2]
[330202670,1719142394337,-731.8252,0.0001339,2]
[330202671,1719142394361,-179.68,0.00013437,2]
[330202672,1719142394384,-219.04401576,0.0001349,2]
[330202673,1719142397381,7525.02068424,0.0001339,2]
[330202674,1719142397407,10000.0,0.0001339,2]
[330202675,1719142397429,10000.0,0.0001339,2]
[330202676,1719142397685,-10000.0,0.0001339,2]
[330202677,1719142398156,-10000.0,0.0001339,2]
[330202678,1719142398874,-10000.0,0.0001339,2]
[330202679,1719142399397,-10000.0,0.0001339,2]
[330202680,1719142399954,-10000.0,0.0001339,2]
[330202681,1719142400568,-7549.92391576,0.0001339,2]
[330202682,1719142407464,2000.0,0.00013134,3]
[330202683,1719142422925,-10000.0,0.0001349,2]
[330202684,1719142429560,-450.07608424,0.0001349,2]
[330202685,1719142495257,161.0,0.0002,120]
[330202686,1719142495717,161.0,0.0002,120]
[330202687,1719142496409,161.0,0.0002,120]
[330202688,1719142496783,161.0,0.0002,120]
[330202690,1719142577000,162.0,0.0001602,22]
[330202695,1719142897209,162.40221091,0.0001602,22]
[330202707,1719143431842,-594.02,0.00010369,2]
[330202708,1719143431853,-5254.20901217,0.000112,2]
[330202709,1719143431865,-7704.92250455,0.000118,2]
[330202710,1719143431875,-10749.50758498,0.00012,2]
[330202711,1719143431886,-20974.79775801,0.00012,2]
[330202712,1719143431896,-496.1,0.00012258,2]
[330202713,1719143431908,-936.99,0.00012317,2]
[330202714,1719143431918,-150.0,0.00012356,2]
[330202715,1719143431930,-250.0,0.00012376,2]
[330202716,1719143431940,-2000.0,0.00012428,3]
[330202717,1719143431949,-250.0,0.00012459,2]
[330202718,1719143431959,-192.23,0.0001249,2]
[330202719,1719143431968,-594.02,0.00012633,2]
[330202720,1719143431977,-166.49,0.00012685,2]
[330202721,1719143431986,-180.27,0.00012687,2]
[330202722,1719143431996,-23900.0,0.00012702,2]
[330202723,1719143432006,-1220.67,0.00012726,2]
[330202724,1719143432026,-1000.0,0.00012788,2]
[330202725,1719143432037,-178.72,0.00012829,2]
[330202726,1719143432048,-150.0,0.00013014,2]
[330202727,1719143432058,-150.0,0.00013014,2]
[330202728,1719143432069,-150.0,0.00013014,2]
[330202729,1719143432078,-150.0,0.00013014,2]
[330202731,1719143432088,-297.32648978,0.00013275,2]
[330202732,1719143432099,-281.0485,0.0001329,2]
[330202733,1719143432111,-155.29631117,0.00013332,2]
[330202734,1719143432122,-367.06697662,0.00013352,2]
[330202735,1719143432133,-86597.2048,0.0001339,2]
[330202736,1719143432144,-11709.6662,0.0001339,2]
[330202737,1719143432155,-8435.4094,0.0001339,2]
[330202738,1719143432165,-499.99,0.0001339,2]
[330202739,1719143432177,-110072.75627549,0.000134,2]
[330202740,1719143432187,-660.11977562,0.00013421,2]
[330202741,1719143432198,-380.35481432,0.00013422,2]
[330202742,1719143432209,-3000.0,0.0001349,2]
[330202743,1719143432220,-2100.0,0.000136,4]
[330202744,1719143432232,-150.0,0.00013616,2]
[330202745,1719143432245,-150.0,0.00013616,2]
[330202746,1719143432255,-423.67,0.00013616,2]
[330202747,1719143432264,-150.0,0.00013616,2]
[330202748,1719143432275,-527.66,0.00013616,2]
[330202749,1719143432287,-150.0,0.00013616,2]
[330202750,1719143432558,-150.0,0.00013616,2]
[330202751,1719143432568,-354.29,0.00013616,2]
[330202752,1719143432578,-150.0,0.00013616,2]
[330202753,1719143432588,-164.6,0.00013616,2]
[330202754,1719143432598,-150.0,0.00013616,2]
[330202755,1719143432608,-1055.16,0.00013616,2]
[330202756,1719143432617,-423.67,0.00013616,2]
[330202757,1719143432628,-150.0,0.00013616,2]
[330202758,1719143432638,-150.0,0.00013616,2]
[330202759,1719143432647,-150.0,0.00013616,2]
[330202760,1719143432658,-150.0,0.00013616,2]
[330202761,1719143432668,-164.6,0.00013616,2]
[330202762,1719143432677,-150.0,0.00013616,2]
[330202763,1719143432687,-354.29,0.00013616,2]
[330202764,1719143432698,-150.0,0.00013616,2]
[330202765,1719143432708,-150.0,0.00013616,2]
[330202766,1719143432717,-150.0,0.00013616,2]
[330202767,1719143432726,-164.6,0.00013616,2]
[330202768,1719143432736,-354.29,0.00013616,2]
[330202769,1719143432746,-423.67,0.00013616,2]
[330202770,1719143432755,-150.0,0.00013616,2]
[330202771,1719143432765,-527.66,0.00013616,2]
[330202772,1719143432774,-150.0,0.00013616,2]
[330202773,1719143432784,-423.67,0.00013616,2]
[330202774,1719143432793,-150.0,0.00013616,2]
[330202775,1719143432802,-164.6,0.00013616,2]
[330202776,1719143432812,-150.0,0.00013616,2]
[330202777,1719143432821,-354.29,0.00013616,2]
[330202778,1719143432831,-150.0,0.00013616,2]
[330202779,1719143432841,-150.0,0.00013616,2]
[330202780,1719143432850,-150.0,0.00013616,2]
[330202781,1719143432860,-527.66,0.00013616,2]
[330202782,1719143432870,-527.66,0.00013616,2]
[330202783,1719143432879,-150.0,0.00013616,2]
[330202784,1719143432889,-150.0,0.00013616,2]
[330202785,1719143432899,-150.0,0.00013616,2]
[330202786,1719143432908,-164.6,0.00013616,2]
[330202787,1719143432917,-354.29,0.00013616,2]
[330202788,1719143432927,-150.0,0.00013616,2]
[330202789,1719143432936,-423.67,0.00013616,2]
[330202790,1719143432945,-423.67,0.00013616,2]
[330202791,1719143432955,-164.6,0.00013616,2]
[330202792,1719143432965,-527.66,0.00013616,2]
[330202793,1719143432974,-300.0,0.00013616,2]
[330202794,1719143432983,-150.0,0.00013616,2]
[330202795,1719143432992,-300.0,0.00013616,2]
[330202796,1719143433002,-300.0,0.00013616,2]
[330202797,1719143433011,-354.29,0.00013616,2]
[330202798,1719143433021,-527.66,0.00013616,2]
[330202799,1719143433031,-423.67,0.00013616,2]
[330202800,1719143433042,-164.6,0.00013616,2]
[330202801,1719143433052,-150.0,0.00013616,2]
[330202802,1719143433064,-354.29,0.00013616,2]
[330202803,1719143433075,-527.66,0.00013616,2]
[330202804,1719143433086,-423.67,0.00013616,2]
[330202805,1719143433095,-155.67,0.00013616,2]
[330202806,1719143433105,-150.0,0.00013616,2]
[330202807,1719143433115,-527.66,0.00013616,2]
[330202808,1719143433126,-164.6,0.00013616,2]
[330202809,1719143433136,-423.67,0.00013616,2]
[330202810,1719143433145,-423.67,0.00013616,2]
[330202811,1719143433160,-527.66,0.00013616,2]
[330202812,1719143433169,-164.6,0.00013616,2]
[330202813,1719143433182,-228.94,0.00013699,2]
[330202814,1719143433192,-3022.81708204,0.00013699,2]
[330202815,1719143433203,-4300.0,0.000137,5]
[330202816,1719143433213,-2491.01847886,0.00013788,2]
[330202817,1719143433223,-2491.01847886,0.00013788,2]
[330202818,1719143433234,-4449.51330229,0.00013788,2]
[330202819,1719143433243,-6471.64691571,0.00013789,2]
[330202820,1719143433253,-214.67559666,0.00013789,2]
[330202821,1719143433263,-159.34066713,0.0001379,2]
[330202822,1719143433273,-5252.6433879,0.00013799,2]
[330202823,1719143433284,-6500.0,0.000138,5]
[330202824,1719143433295,-574602.8397354,0.0001388,2]
[330202828,1719143437909,-128317.955629,0.0001388,2]
[330202829,1719143437923,-6519.9999999,0.0001388,2]
[330202830,1719143437937,-38030.0,0.0001388,2]
[330202834,1719143440045,-8855.95227339,0.0001388,2]
[330202835,1719143440059,-3830.78588787,0.0001388,2]
[330202836,1719143440163,-1755.82471859,0.0001388,2]
[330202837,1719143440223,-60707.07369268,0.0001388,2]
[330202838,1719143440237,-6649.00471842,0.0001388,2]
[330202839,1719143440252,-382.60523184,0.0001388,2]
[330202860,1719143442930,-1913.60066779,0.00013689,2]
[330202861,1719143442953,-1109.21641425,0.00013689,2]
[330202862,1719143442963,-553.18829975,0.00013779,2]
[330202863,1719143443008,-1937.83017911,0.00013779,2]
[330202864,1719143443018,-97639.80021436,0.0001388,2]
[330202866,1719143445902,-1690.967996,0.0001388,2]
[330202867,1719143445918,-1134.93340703,0.0001388,2]
[330202868,1719143445928,-264.22535428,0.0001388,2]
[330202869,1719143445977,-794.11272817,0.0001388,2]
[330202870,1719143446046,-409.23091545,0.0001388,2]
[330202871,1719143446057,-358.54738649,0.0001388,2]
[330202872,1719143446068,-796.69178614,0.0001388,2]
[330202873,1719143446081,-14285.54150026,0.0001388,2]
[330202874,1719143446093,-987.92845493,0.0001388,2]
[330202875,1719143446105,-480.16982061,0.0001388,2]
[330202876,1719143446116,-3078.26223311,0.0001388,2]
[330202877,1719143446127,-790.09807528,0.0001388,2]
[330202878,1719143446139,-39619.84159458,0.0001388,2]
[330202879,1719143446154,-645.14114881,0.0001388,2]
[330202880,1719143446167,-379.44033928,0.0001388,2]
[330202881,1719143446190,-2176.24959874,0.0001388,2]
[330202882,1719143446203,-16251.50482303,0.0001388,2]
[330202883,1719143446215,-517.70657347,0.0001388,2]
[330202884,1719143446228,-1689.57717869,0.0001388,2]
[330202885,1719143446239,-512.96075518,0.0001388,2]
[330202886,1719143446251,-418.56799998,0.0001388,2]
[330202887,1719143446264,-1077.15225315,0.0001388,2]
[330202888,1719143446282,-8571.89705668,0.0001388,2]
[330202908,1719144632340,-591.03,0.00010931,2]
[330202909,1719144632349,-300.0,0.00012157,2]
[330202910,1719144632359,-15900.7983,0.00012158,2]
[330202911,1719144632370,-150.0,0.00012678,2]
[330202912,1719144632382,-250.0,0.00012711,2]
[330202913,1719144632392,-2000.0,0.0001278,3]
[330202914,1719144632403,-250.0,0.00012781,2]
[330202915,1719144632412,-924.98,0.00012813,2]
[330202916,1719144632422,-11758.39,0.00012958,2]
[330202917,1719144632431,-165.4,0.00012967,2]
[330202918,1719144632442,-459.07,0.00012967,2]
[330202919,1719144632453,-999.99,0.00012967,2]
[330202920,1719144632465,-1000.0,0.00012997,2]
[330202921,1719144632474,-179.68,0.00012997,2]
[330202922,1719144632485,-354.29,0.00013178,2]
[330202923,1719144632497,-42107.6224,0.0001319,2]
[330202924,1719144632508,-231.7897,0.0001319,2]
[330202925,1719144632518,-486.3734,0.0001319,2]
[330202926,1719144632528,-591.03,0.00013195,2]
[330202927,1719144632538,-354.29,0.00013278,2]
[330202928,1719144632549,-234549.9239,0.0001329,2]
[330202929,1719144632558,-314.4728836,0.0001338,2]
[330202930,1719144632568,-5398.55941619,0.0001348,2]
[330202931,1719144632581,-693.87996939,0.0001348,2]
[330203019,1719144643085,-3820.52061442,0.0001348,2]
[330203021,1719144643097,-722.10958623,0.00013483,2]
[330203025,1719144643109,-1700.0,0.000136,4]
[330203028,1719144643120,-416.3169193,0.00013699,2]
[330203030,1719144643131,-3400.0,0.000137,5]
[330203033,1719144643142,-169.57789502,0.00013719,2]
[330203035,1719144643153,-197.75612158,0.0001378,2]
[330203039,1719144643165,-159.34066713,0.0001379,2]
[330203041,1719144643176,-4727.37904911,0.00013799,2]
[330203043,1719144643188,-24686.34963066,0.00013799,2]
[330203045,1719144643199,-5100.0,0.000138,5]
[330203047,1719144643211,-499.99,0.000138,2]
[330203050,1719144643223,-1511.4105634,0.00013869,2]
[330203052,1719144643234,-2458.24642948,0.00013869,2]
[330203054,1719144643245,-2132.21,0.0001387,2]
[330203056,1719144643257,-15603.7131013,0.0001387,2]
[330203058,1719144643269,-8123.3634658,0.0001387,2]
[330203061,1719144643280,-322747.03069555,0.0001388,2]
[330203068,1719144643386,-2993.703415,0.0001388,2]
[330203069,1719144643402,-646.36364551,0.0001388,2]
[330203076,1719144646525,-7440.027946,0.0001388,2]
[330203079,1719144870227,151.56,0.0001499,30]
[330203080,1719145211138,506.64,0.0002,120]
[330203093,1719145832192,-584.6,0.00010823,2]
[330203094,1719145832202,-250.0,0.00012728,2]
[330203095,1719145832211,-250.0,0.00012734,2]
[330203096,1719145832221,-150.0,0.00012738,2]
[330203097,1719145832233,-2000.0,0.0001274,3]
[330203098,1719145832242,-919.79,0.00012783,2]
[330203099,1719145832251,-165.52,0.00012796,2]
[330203100,1719145832260,-812.50857615,0.00012857,2]
[330203101,1719145832274,-187.49142385,0.00012857,2]
[330203102,1719145832284,-262.50857615,0.00013087,2]
[330203103,1719145832307,-322.09142385,0.00013087,2]
[330203104,1719145832316,-199.85,0.00013144,2]
[330203105,1719145832325,-210.97286701,0.00013189,2]
[330203106,1719145832337,-89.02713299,0.00013189,2]
[330203107,1719145832346,-300.0,0.00013189,2]
[330203108,1719145832355,-150.0,0.00013189,2]
[330203109,1719145832364,-70.65286699,0.0001319,2]
[330203110,1719145832396,-3185.94146673,0.0001319,2]
[330203111,1719145832408,-800.05936628,0.0001319,2]
[330203112,1719145832418,-126.528,0.0001319,2]
[330203113,1719145832429,-529.922,0.0001319,2]
[330203114,1719145832439,-262.6681174,0.0001319,2]
[330203115,1719145832462,-825.99999941,0.0001319,2]
[330203132,1719145838222,-537.22222227,0.0001319,2]
[330203133,1719145838235,-325.59426092,0.0001319,2]
[330203134,1719145838245,-384.09870792,0.00013458,2]
[330203135,1719145838254,-155.09550556,0.00013489,2]
[330203136,1719145838264,-427.21293137,0.00013558,2]
[330203137,1719145838273,-9451.91484763,0.00013565,2]
[330203138,1719145838285,-1055.31515237,0.00013565,2]
[330203139,1719145838294,-168.18114171,0.00013578,2]
[330203140,1719145838303,-1200.0,0.000137,5]
[330203141,1719145838312,-492.75515407,0.0001372,2]
[330203142,1719145838321,-155.1064808,0.0001372,2]
[330203143,1719145838331,-387.75059653,0.00013767,2]
[330203144,1719145838341,-387.75059653,0.00013767,2]
[330203145,1719145838350,-147.13332983,0.00013768,2]
[330203146,1719145838362,-675.88889108,0.00013768,2]
[330203147,1719145838373,-176.97777909,0.00013768,2]
[330203148,1719145838382,-119.66197954,0.00013768,2]
[330203149,1719145838402,-380.33802046,0.00013768,2]
[330203150,1719145838411,-27.54614126,0.00013768,2]
[330203151,1719145838423,-172.45385874,0.00013768,2]
[330203152,1719145838432,-500.0,0.00013768,2]
[330203153,1719145838441,-500.0,0.00013769,2]
[330203154,1719145838451,-1000.0,0.00013769,2]
[330203155,1719145838460,-500.0,0.00013769,2]
[330203156,1719145838469,-500.0,0.00013769,2]
[330203157,1719145838478,-500.0,0.00013769,2]
[330203158,1719145838487,-200.0,0.00013769,2]
[330203159,1719145838497,-165.0551,0.00013769,2]
[330203160,1719145838506,-32.57402033,0.00013769,2]
[330203161,1719145838540,-1064.5676234,0.00013769,2]
[330203162,1719145838551,-1530.03477773,0.00013769,2]
[330203163,1719145838567,-1512.690657,0.00013769,2]
[330203164,1719145838578,-381.33465368,0.00013769,2]
[330203165,1719145838590,-2207.19666786,0.00013769,2]
[330203166,1719145838599,-1030.4168,0.00013779,2]
[330203167,1719145838608,-159.34066713,0.0001379,2]
[330203168,1719145838617,-4254.64114419,0.00013799,2]
[330203169,1719145838627,-2400.0,0.000138,5]
[330203170,1719145838636,-7400.67020161,0.00013869,2]
[330203171,1719145838663,-850.94665151,0.00013869,2]
[330203173,1719145840385,-208.2521774,0.00013699,2]
[330203174,1719145840396,-872.6862181,0.00013869,2]
[330203175,1719145840409,-892.47251862,0.00013869,2]
[330203176,1719145842404,-269.54288353,0.00013869,2]
[330203177,1719145842416,-1419.63437913,0.00013869,2]
[330203178,1719145842425,-843.6321819,0.00013869,2]
[330203179,1719145842437,-315.6,0.00013869,2]
[330203180,1719145842483,-4787.60845591,0.00013869,2]
[330203181,1719145842511,-172.71151609,0.00013869,2]
[330203182,1719145842520,-862.2364652,0.00013869,2]
[330203183,1719145842530,-207.741148,0.00013869,2]
[330203184,1719145842539,-99629.5096085,0.00013869,2]
[330203185,1719145842547,-209.45341844,0.00013879,2]
[330203186,1719145842557,-5910.04510539,0.00013879,2]
[330203187,1719145842567,-22203.34937837,0.0001388,2]
[330203188,1719145842577,-3000.0,0.0001388,2]
[330203189,1719145842586,-7418.91,0.00013889,2]
[330203190,1719145842595,-7369.88,0.0001389,2]
[330203191,1719145842604,-175.25547106,0.000139,2]
[330203192,1719145842614,-157.72862368,0.000139,2]
[330203193,1719145842623,-5932.34300604,0.000139,2]
[330203194,1719145842633,-3600.0,0.000139,5]
[330203195,1719145842644,-275.16377315,0.000139,2]
[330203196,1719145842653,-197.75612158,0.000139,2]
[330203197,1719145842663,-171.39309846,0.000139,2]
[330203198,1719145842672,-322.64063138,0.000139,2]
[330203199,1719145842682,-3022.81708204,0.00013933,2]
[330203200,1719145842691,-24686.34963066,0.00013989,2]
[330203201,1719145842700,-742.23504748,0.00013999,5]
[330203202,1719145842709,-1009.32521493,0.00013999,5]
[330203203,1719145842718,-614.0,0.00014,2]
[330203204,1719145842728,-161859.53031384,0.00014,2]
[330203227,1719145843313,-6973.38564092,0.00014,2]
[330203231,1719145843390,-3230.2381216,0.00014,2]
[330203232,1719145843402,-17946.5494191,0.00014,2]
[330203233,1719145843482,-13397.85305697,0.00014,2]
[330203234,1719145846545,-531.405,0.00013471,2]
[330203235,1719145878610,155.0,0.00013471,10]
[330203236,1719145951054,150.5,0.0001499,30]
[330203237,1719145951450,150.5,0.0001498,30]
[330203238,1719145951955,159.64,0.0001497,30]
[330203239,1719145960622,155.0,0.00013471,10]
[330203240,1719146054616,155.0,0.00013471,10]
[330203242,1719146070177,150.5,0.00014702,30]
[330203243,1719146070751,150.5,0.00014692,30]
[330203244,1719146071620,150.5,0.00014682,30]
[330203249,1719146260702,-155.0,0.00014682,10]
[330203250,1719146260733,-1978.61138425,0.00015,10]
[330203251,1719146260784,-2649.43,0.00018849,30]
[330203252,1719146260809,-150.5,0.0001887,30]
[330203253,1719146260834,-150.5,0.0001888,30]
[330203254,1719146260859,-150.5,0.0001889,30]
[330203255,1719146260886,-155.0,0.00019111,30]
[330203256,1719146260916,-2000.0,0.0002,30]
[330203257,1719146260951,-235.0,0.0002035,30]
[330203258,1719146260977,-150.5,0.0002036,30]
[330203259,1719146261009,-152.0,0.00021324,10]
[330203260,1719146261034,-152.0,0.00021673,11]
[330203261,1719146261411,-396.84348872,0.00022,30]
[330203262,1719146261436,-152.0,0.00022022,12]
[330203263,1719146261462,-152.0,0.0002237,13]
[330203264,1719146261487,-152.0,0.00022719,14]
[330203265,1719146261516,-320.0,0.00023,10]
[330203266,1719146261545,-152.0,0.00023067,15]
[330203267,1719146261572,-152.0,0.00023416,16]
[330203268,1719146261598,-152.0,0.00023765,17]
[330203269,1719146261622,-2649.43,0.00023831,30]
[330203270,1719146261648,-229586.87096994,0.00024,15]
[330203271,1719146261672,-11776.05995621,0.00024,15]
[330203272,1719146261695,-1500.0,0.00024,10]
[330203273,1719146261719,-6443.73,0.00024,30]
[330203274,1719146261744,-152.0,0.00024113,18]
[330203275,1719146261769,-304.04229409,0.000243,120]
[330203276,1719146261794,-152.0,0.00024462,19]
[330203277,1719146261822,-152.0,0.00024811,20]
[330203278,1719146261846,-200.0,0.00024999,120]
[330203279,1719146261871,-959.35835667,0.00025,30]
[330203280,1719146261895,-667.66207935,0.00025,30]
[330203281,1719146261917,-3491.06669984,0.00025,30]
[330203282,1719146261944,-192.0,0.00025,13]
[330203283,1719146261971,-152.0,0.00025159,21]
[330203284,1719146261999,-1000.0,0.00025499,120]
[330203285,1719146262023,-192.0,0.000255,13]
[330203286,1719146262047,-152.0,0.00025508,22]
[330203287,1719146262072,-152.0,0.00025857,23]
[330203288,1719146262099,-192.0,0.00026,14]
[330203289,1719146262124,-152.0,0.00026205,24]
[330203290,1719146262148,-192.0,0.000265,14]
[330203291,1719146262173,-152.0,0.00026554,25]
[330203292,1719146262199,-1270.66653476,0.000269,30]
[330203293,1719146262222,-152.0,0.00026903,26]
[330203294,1719146262246,-1000.0,0.00026999,120]
[330203295,1719146262271,-192.0,0.00027,15]
[330203296,1719146262301,-152.0,0.00027251,27]
[330203297,1719146262325,-377.95900789,0.0002739,20]
[330203298,1719146262355,-292.42803436,0.0002739,25]
[330203299,1719146262379,-5051.34,0.00027393,15]
[330203300,1719146262403,-5051.34,0.00027393,15]
[330203301,1719146262434,-237.76,0.00027397,30]
[330203302,1719146262457,-2000.0,0.00027397,30]
[330203303,1719146262480,-2000.0,0.00027397,30]
[330203304,1719146262503,-2000.0,0.00027397,30]
[330203305,1719146262526,-2000.0,0.00027397,30]
[330203306,1719146262548,-2000.0,0.00027397,30]
[330203307,1719146262571,-2000.0,0.00027397,30]
[330203308,1719146262594,-2000.0,0.00027397,30]
[330203309,1719146262617,-2000.0,0.00027397,30]
[330203310,1719146262639,-2000.0,0.00027397,30]
[330203311,1719146262664,-2000.0,0.00027397,30]
[330203312,1719146262687,-2000.0,0.00027397,30]
[330203313,1719146262714,-2000.0,0.00027397,30]
[330203314,1719146262741,-1575.0066086,0.00027397,30]
[330203315,1719146262768,-200.0,0.00027397,60]
[330203316,1719146262802,-2815.22,0.00027397,10]
[330203317,1719146262830,-192.0,0.000275,16]
[330203318,1719146262855,-237.76,0.00027534,30]
[330203319,1719146262884,-152.0,0.000276,28]
[330203320,1719146262911,-5051.34,0.00027666,15]
[330203321,1719146262934,-5051.34,0.00027666,15]
[330203322,1719146262956,-237.76,0.00027671,30]
[330203323,1719146262981,-150.0,0.00027781,120]
[330203324,1719146263006,-237.76,0.00027808,30]
[330203325,1719146263030,-5051.34,0.0002794,15]
[330203326,1719146263053,-5051.34,0.0002794,15]
[330203327,1719146263077,-237.76,0.00027945,30]
[330203328,1719146263101,-1392779.25922334,0.0002799,10]
[330203329,1719146263124,-1550.77409293,0.00028,30]
[330203330,1719146263149,-192.0,0.00028,16]
[330203331,1719146263173,-250.0,0.00028,30]
[330203332,1719146263198,-150.0,0.00028044,120]
[330203333,1719146263222,-237.76,0.00028082,30]
[330203334,1719146263248,-5051.34,0.00028213,15]
[330203335,1719146263272,-5051.34,0.00028213,15]
[330203336,1719146263296,-237.76,0.00028219,30]
[330203337,1719146263320,-151.52084922,0.00028297,120]
[330203338,1719146263345,-237.76,0.00028356,30]
[330203339,1719146263370,-5051.34,0.00028486,15]
[330203340,1719146263394,-5051.34,0.00028486,15]
[330203341,1719146263419,-237.76,0.00028493,30]
[330203342,1719146263445,-1000.0,0.00028499,120]
[330203343,1719146263468,-192.0,0.000285,17]
[330203344,1719146263492,-150.0,0.0002855,120]
[330203345,1719146263522,-237.76,0.0002863,30]
[330203346,1719146263549,-5051.34,0.00028759,15]
[330203347,1719146263574,-5051.34,0.00028759,15]
[330203348,1719146263599,-237.76,0.00028767,30]
[330203349,1719146263625,-2649.43,0.00028812,30]
[330203350,1719146263651,-237.76,0.00028904,30]
[330203351,1719146263678,-150.0,0.00028986,120]
[330203352,1719146263704,-1004.48091545,0.00029,120]
[330203353,1719146263729,-192.0,0.00029,17]
[330203354,1719146263756,-237.76,0.00029041,30]
[330203355,1719146263803,-237.76,0.00029178,30]
[330203356,1719146263829,-237.76,0.00029315,30]
[330203357,1719146263856,-237.76,0.00029452,30]
[330203358,1719146263882,-192.0,0.000295,18]
[330203359,1719146263909,-150.0,0.00029554,120]
[330203360,1719146263936,-237.76,0.00029589,30]
[330203361,1719146263963,-2110.0,0.00029651,15]
[330203362,1719146263990,-237.76,0.00029726,30]
[330203363,1719146264016,-1741.751313,0.0002978,10]
[330203364,1719146264043,-1000.0,0.000298,10]
[330203365,1719146264069,-1000.0,0.0002982,10]
[330203366,1719146264099,-1000.0,0.0002984,10]
[330203367,1719146264126,-150.0,0.00029849,120]
[330203368,1719146264150,-1000.0,0.0002986,10]
[330203369,1719146264176,-237.76,0.00029863,30]
[330203370,1719146264206,-1000.0,0.0002988,10]
[330203371,1719146264231,-1000.0,0.000299,10]
[330203372,1719146264255,-1000.0,0.0002992,10]
[330203373,1719146264280,-1000.0,0.0002994,10]
[330203374,1719146264306,-1000.0,0.0002996,10]
[330203375,1719146264331,-1000.0,0.0002998,10]
[330203376,1719146264361,-237.76,0.00029999,30]
[330203377,1719146264387,-1000.0,0.00029999,120]
[330203378,1719146264416,-2668.94610302,0.0003,30]
[330203379,1719146264441,-1403.97680355,0.0003,60]
[330203380,1719146264467,-571.0,0.0003,120]
[330203381,1719146264494,-250.0,0.0003,30]
[330203382,1719146264520,-250.0,0.0003,30]
[330203383,1719146264549,-250.0,0.0003,30]
[330203384,1719146264574,-270.46231836,0.0003,30]
[330203385,1719146264598,-200.0,0.0003,30]
[330203386,1719146264625,-1000.0,0.0003,11]
[330203387,1719146264650,-150.1,0.0003,14]
[330203388,1719146264674,-192.0,0.0003,18]
[330203389,1719146264701,-237.76,0.00030136,30]
[330203390,1719146264727,-837.04,0.00030136,120]
[330203391,1719146264755,-837.04,0.00030136,120]
[330203392,1719146264781,-837.04,0.00030136,120]
[330203393,1719146264808,-837.04,0.00030136,120]
[330203394,1719146264834,-837.04,0.00030136,120]